bitfinex/quotes_SOLUSD_20241101
["timestamp","ask_amount","ask_price","bid_price","bid_amount"]
[1730433128370,17.00821451,167.05,166.97,30.544]
[1730433128371,16.13040822,167.07,167.0,10.14490822]
[1730433128546,10.14490822,167.05,167.0,10.14490822]
[1730433128959,5.9855,167.07,166.98,6.3389]
[1730433129271,10.14490822,167.02,166.98,6.3389]
[1730433129464,10.14490822,167.03,166.98,12.3275]
[1730433130277,10.14490822,167.02,166.98,12.3275]
[1730433131174,10.14490822,167.02,166.98,5.9886]
[1730433132965,10.14490822,167.01,166.97,15.5721]
[1730433133273,10.14490822,167.0,166.97,15.5721]
[1730433133472,10.14490822,167.01,166.97,15.5721]
[1730433134148,10.14490822,167.03,166.98,10.14490822]
[1730433134371,20.0,167.02,166.97,31.70600822]
[1730433135964,20.0,167.02,166.98,10.14490822]
[1730433136364,20.0,167.02,166.97,46.67870822]
[1730433139064,30.14490822,167.02,166.97,46.67870822]
[1730433140977,30.14490822,167.02,166.97,36.5338]
[1730433141854,30.14490822,167.03,166.97,46.67870822]
[1730433142174,20.0,167.02,166.99,10.14490822]
[1730433142474,20.0,167.03,166.99,10.14490822]
[1730433143171,20.0,167.04,167.01,10.14490822]
[1730433143780,10.14490822,167.08,167.03,10.14490822]
[1730433144283,10.14490822,167.09,167.04,16.13140822]
[1730433144653,13.43506863,167.11,167.05,10.14490822]
[1730433144862,10.14490822,167.11,167.06,10.14490822]
[1730433146161,20.0,167.1,167.05,10.14490822]
[1730433146690,20.0,167.1,167.06,20.9504]
[1730433146856,20.0,167.11,167.07,10.14490822]
[1730433147173,10.14490822,167.13,167.07,10.14490822]
[1730433147387,10.14490822,167.14,167.08,10.14490822]
[1730433147556,10.14490822,167.13,167.08,10.14490822]
[1730433148588,20.0,167.12,167.08,10.14490822]
[1730433148885,20.0,167.12,167.08,31.09250822]
[1730433149091,30.14490822,167.12,167.08,20.9476]
[1730433150879,10.14490822,167.14,167.09,10.14490822]
[1730433151263,10.14490822,167.13,167.08,31.09250822]
[1730433151767,10.14490822,167.14,167.08,31.09250822]
[1730433153875,10.14490822,167.13,167.08,31.09250822]
[1730433154979,20.0,167.14,167.1,5.9844]
[1730433155157,30.14490822,167.14,167.1,5.9844]
[1730433155776,10.14490822,167.16,167.1,31.09040822]
[1730433155976,10.14490822,167.16,167.11,10.14490822]
[1730433156697,10.14490822,167.16,167.1,31.09040822]
[1730433156911,10.14490822,167.16,167.11,10.14490822]
[1730433157075,10.14490822,167.16,167.12,5.9837]
[1730433157589,10.14490822,167.17,167.12,5.9837]
[1730433158091,20.0,167.16,167.12,5.9837]
[1730433158974,10.14490822,167.16,167.12,5.9837]
[1730433159283,10.14490822,167.15,167.1,20.9452]
[1730433159480,20.0,167.17,167.1,14.9611]
[1730433159481,10.14490822,167.12,167.1,14.9611]
[1730433159684,10.14490822,167.13,167.1,14.9611]
[1730433160888,10.14490822,167.13,167.1,20.9455]
[1730433161095,10.14490822,167.13,167.1,14.9611]
[1730433161297,10.14490822,167.12,167.1,14.9611]
[1730433161798,10.14490822,167.13,167.1,14.9611]
[1730433164493,10.14490822,167.13,167.08,5.9851]
[1730433166504,10.14490822,167.13,167.08,16.13000822]
[1730433167405,10.14490822,167.13,167.08,5.9851]
[1730433167706,16.12830822,167.13,167.07,22.30980822]
[1730433167998,10.14490822,167.13,167.07,37.27350822]
[1730433168786,10.14490822,167.13,167.08,10.14490822]
[1730433169287,10.14490822,167.13,167.08,16.12980822]
[1730433170089,10.14490822,167.11,167.07,20.9492]
[1730433170282,10.14490822,167.12,167.07,20.9492]
[1730433170586,10.14490822,167.12,167.07,31.09410822]
[1730433171009,10.14490822,167.12,167.07,25.10860822]
[1730433171209,10.14490822,167.12,167.07,20.9492]
[1730433172093,20.0,167.12,167.07,31.09410822]
[1730433172296,30.14490822,167.12,167.07,20.9492]
[1730433172495,10.14490822,167.12,167.07,20.9492]
[1730433173188,20.0,167.12,167.07,31.09410822]
[1730433174888,20.0,167.13,167.09,10.14490822]
[1730433175214,30.14490822,167.13,167.07,25.10860822]
[1730433176002,30.14490822,167.13,167.07,31.09410822]
[1730433178221,10.14490822,167.12,167.07,14.9637]
[1730433179311,10.14490822,167.12,167.07,20.9492]
[1730433181489,36.12820822,167.13,167.07,25.10860822]
[1730433182818,36.12820822,167.13,167.07,31.09410822]
[1730433183316,10.14490822,167.12,167.07,20.9492]
[1730433185413,36.12820822,167.13,167.07,25.10860822]
[1730433186393,36.12820822,167.13,167.07,31.09410822]
[1730433187814,10.14490822,167.12,167.07,14.9637]
[1730433188997,10.14490822,167.12,167.07,20.9492]
[1730433189704,10.14490822,167.12,167.07,31.09410822]
[1730433190099,36.12820822,167.13,167.07,31.09410822]
[1730433193429,25.9833,167.13,167.07,31.09410822]
[1730433193627,20.0,167.13,167.08,10.14490822]
[1730433194720,20.0,167.13,167.08,16.12980822]
[1730433195222,20.0,167.14,167.09,10.14490822]
[1730433196303,20.0,167.14,167.1,31.09040822]
[1730433196514,20.0,167.15,167.11,10.14490822]
[1730433197020,20.0,167.16,167.11,10.14490822]
[1730433197825,20.0,167.16,167.11,25.56950822]
[1730433198201,20.0,167.16,167.11,31.55330822]
[1730433199117,20.0,167.16,167.11,46.51350822]
[1730433199327,30.14490822,167.16,167.11,46.51350822]
[1730433199504,10.14490822,167.16,167.11,36.3686]
[1730433206430,10.14490822,167.15,167.11,30.3848]
[1730433206607,10.14490822,167.15,167.11,14.9602]
[1730433206816,5.9823,167.16,167.08,5.9848]
[1730433206817,10.14490822,167.12,167.08,5.9848]
[1730433207513,10.14490822,167.13,167.08,20.9476]
[1730433211427,10.14490822,167.11,167.07,15.4397]
[1730433211727,10.14490822,167.11,167.06,5.9857]
[1730433211728,10.14490822,167.1,167.06,5.9857]
[1730433212534,10.14490822,167.11,167.06,16.13060822]
[1730433215606,10.14490822,167.11,167.06,5.9857]
[1730433216430,10.14490822,167.1,167.05,10.14490822]
[1730433216602,10.14490822,167.1,167.05,16.13080822]
[1730433219730,10.14490822,167.09,167.04,20.9523]
[1730433220730,20.0,167.09,167.04,31.09720822]
[1730433225721,20.0,167.11,167.06,10.14490822]
[1730433226614,20.0,167.11,167.06,16.13050822]
[1730433226816,30.14490822,167.11,167.06,5.9856]
[1730433227406,20.0,167.09,167.06,5.9856]
[1730433227817,20.0,167.09,167.05,10.14490822]
[1730433228023,30.14490822,167.09,167.05,5.9862]
[1730433228214,10.14490822,167.08,167.04,14.9658]
[1730433228809,30.14490822,167.09,167.04,14.4658]
[1730433229011,30.14490822,167.09,167.04,30.59720822]
[1730433229238,10.14490822,167.08,167.04,20.4523]
[1730433229833,30.14490822,167.09,167.04,20.4523]
[1730433230434,10.14490822,167.08,167.04,14.4658]
[1730433230638,30.14490822,167.07,167.02,16.13180822]
[1730433230816,30.14490822,167.07,167.02,10.14490822]
[1730433231020,10.14490822,167.06,167.01,16.13240822]
[1730433231238,10.14490822,167.06,167.01,5.9875]
[1730433231810,10.14490822,167.04,166.99,44.74471088]
[1730433232027,10.14490822,167.06,167.0,10.14490822]
[1730433232238,30.14490822,167.05,167.0,10.14490822]
[1730433232725,30.14490822,167.05,167.0,16.13290822]
[1730433232914,10.14490822,167.04,167.0,5.988]
[1730433233523,30.14490822,167.05,167.0,5.988]
[1730433233724,20.0,167.05,167.01,10.14490822]
[1730433234817,20.0,167.05,167.0,16.13290822]
[1730433236835,30.14490822,167.05,167.0,5.988]
[1730433237014,20.0,167.05,167.0,16.13290822]
[1730433239248,20.0,167.05,167.01,10.14490822]
[1730433239449,20.0,167.07,167.02,10.14490822]
[1730433239654,20.0,167.07,167.01,20.9567]
[1730433239655,20.0,167.07,167.03,10.14490822]
[1730433239825,20.0,167.08,167.03,10.14490822]
[1730433240548,30.14490822,167.08,167.02,10.14490822]
[1730433241349,30.14490822,167.08,167.03,10.14490822]
[1730433242537,30.14490822,167.08,167.03,16.13170822]
[1730433243359,10.14490822,167.07,167.03,5.9868]
[1730433243654,10.14490822,167.07,167.02,5.9869]
[1730433244250,30.14490822,167.06,167.02,5.9869]
[1730433244432,10.14490822,167.06,167.02,5.9869]
[1730433244832,10.14490822,167.07,167.02,5.9869]
[1730433245048,20.0,167.06,167.02,5.9869]
[1730433245240,20.0,167.06,167.02,10.14490822]
[1730433247658,20.0,167.06,167.01,31.10160822]
[1730433247857,10.14490822,167.07,166.97,6.2282419]
[1730433247858,10.14490822,167.02,166.97,6.2282419]
[1730433248160,20.0,166.97,166.91,0.5915306]
[1730433248355,10.14490822,166.94,166.91,0.5915306]
[1730433248749,10.14490822,166.95,166.91,0.5915306]
[1730433249259,20.0,166.97,166.91,0.5915306]
[1730433249260,30.14490822,166.94,166.91,0.5915306]
[1730433250044,20.0,166.94,166.91,0.5915306]
[1730433250244,20.0,166.96,166.91,10.73643882]
[1730433250445,20.0,166.96,166.92,10.14490822]
[1730433251737,30.14490822,166.96,166.91,10.73643882]
[1730433254051,10.14490822,166.95,166.91,0.5915306]
[1730433254346,10.14490822,166.94,166.91,0.5915306]
[1730433254858,10.14490822,166.93,166.91,0.5915306]
[1730433255048,10.14490822,166.92,166.91,0.5915306]
[1730433255244,30.14490822,166.92,166.91,0.5915306]
[1730433256045,20.0,166.92,166.91,0.5915306]
[1730433259168,10.14490822,166.96,166.91,16.72743882]
[1730433259375,30.14490822,166.95,166.91,6.5825306]
[1730433259549,30.14490822,166.96,166.91,31.70553882]
[1730433259748,10.14490822,166.95,166.91,21.5606306]
[1730433261345,10.14490822,166.93,166.91,0.5915306]
[1730433261562,10.14490822,166.92,166.91,0.5915306]
[1730433262672,10.14490822,166.93,166.91,0.5915306]
[1730433263358,10.14490822,166.94,166.91,0.5915306]
[1730433263659,20.0,166.93,166.91,0.5915306]
[1730433264053,10.14490822,166.94,166.91,0.5915306]
[1730433267669,10.14490822,166.92,166.91,0.5915306]
[1730433268179,10.14490822,166.93,166.91,0.5915306]
[1730433268678,10.14490822,166.95,166.91,0.5915306]
[1730433268976,20.0,166.95,166.91,21.5608306]
[1730433269365,30.14490822,166.95,166.91,21.5608306]
[1730433269563,10.14490822,166.94,166.91,21.5608306]
[1730433274562,10.14490822,166.95,166.91,21.5608306]
[1730433275161,10.14490822,166.92,166.91,0.5915306]
[1730433289586,10.14490822,166.93,166.91,0.5915306]
[1730433289783,10.14490822,166.92,166.91,0.5915306]
[1730433291275,10.14490822,166.93,166.91,0.5915306]
[1730433291482,10.14490822,166.92,166.91,0.5915306]
[1730433292398,36.13570822,166.92,166.91,0.5915306]
[1730433299592,30.14490822,166.92,166.91,0.5915306]
[1730433299778,20.0,166.92,166.91,0.5915306]
[1730433300674,10.14490822,166.94,166.91,0.5915306]
[1730433300875,10.14490822,166.93,166.91,0.5915306]
[1730433301091,10.14490822,166.92,166.91,0.5915306]
[1730433303294,30.14490822,166.93,166.91,0.5915306]
[1730433305373,10.14490822,166.92,166.91,0.5915306]
[1730433307301,10.14490822,166.93,166.91,0.5915306]
[1730433307487,20.0,166.94,166.91,6.5827306]
[1730433307799,20.0,166.93,166.91,6.5827306]
[1730433308186,30.14490822,166.93,166.91,6.5827306]
[1730433309805,20.0,166.93,166.91,6.5827306]
[1730433310403,20.0,166.95,166.92,16.3346]
[1730433311191,30.14490822,166.95,166.92,16.3346]
[1730433312094,30.14490822,166.95,166.92,22.3254]
[1730433314904,20.0,166.95,166.92,37.3026]
[1730433315205,10.14490822,166.96,166.92,37.3026]
[1730433315799,10.14490822,166.98,166.92,47.44750822]
[1730433315998,20.0,166.98,166.93,10.14490822]
[1730433316311,20.0,166.98,166.95,5.9898]
[1730433316510,10.14490822,167.02,166.95,20.9643]
[1730433316699,10.14490822,167.01,166.96,10.14490822]
[1730433316895,10.14490822,167.0,166.95,31.10920822]
[1730433317415,10.14490822,167.01,166.96,10.14490822]
[1730433317717,10.14490822,167.0,166.95,31.10920822]
[1730433317895,10.14490822,167.01,166.95,31.10920822]
[1730433319524,10.14490822,167.01,166.96,10.14490822]
[1730433320302,10.14490822,167.01,166.97,5.989]
[1730433320690,30.14490822,167.03,166.98,26.37770822]
[1730433321007,30.14490822,167.03,166.98,16.2328]
[1730433322017,30.14490822,167.03,166.99,20.9592]
[1730433322392,10.14490822,167.02,166.99,20.9592]
[1730433322796,30.14490822,167.03,166.99,20.9592]
[1730433323597,10.14490822,167.05,166.99,31.10410822]
[1730433323803,10.14490822,167.04,166.99,31.10410822]
[1730433323998,10.14490822,167.03,166.99,20.9592]
[1730433324989,10.14490822,167.04,166.99,31.10410822]
[1730433325400,10.14490822,167.05,167.0,10.14490822]
[1730433326194,10.14490822,167.07,167.01,10.14490822]
[1730433326491,20.0,167.06,167.02,10.14490822]
[1730433326699,30.14490822,167.06,167.01,10.14490822]
[1730433327194,30.14490822,167.06,167.01,31.10160822]
[1730433328905,20.0,167.06,167.02,10.14490822]
[1730433329213,20.0,167.06,167.03,5.9869]
[1730433329621,10.14490822,167.06,167.03,5.9869]
[1730433330310,10.14490822,167.06,167.01,25.11400822]
[1730433330513,10.14490822,167.06,167.01,31.10160822]
[1730433330733,30.14490822,167.08,167.03,10.14490822]
[1730433330901,10.14490822,167.09,167.04,10.14490822]
[1730433331091,10.14490822,167.1,167.05,10.14490822]
[1730433331399,10.14490822,167.11,167.05,10.14490822]
[1730433331814,10.14490822,167.1,167.05,10.14490822]
[1730433332011,10.14490822,167.11,167.05,10.14490822]
[1730433332219,10.14490822,167.11,167.06,10.14490822]
[1730433332409,10.14490822,167.12,167.07,20.9492]
[1730433332794,10.14490822,167.13,167.08,10.14490822]
[1730433333001,10.14490822,167.14,167.09,15.8254]
[1730433334090,10.14490822,167.14,167.1,5.9844]
[1730433334608,10.14490822,167.12,167.1,5.9844]
[1730433336503,20.0,167.15,167.1,31.09040822]
[1730433336707,30.14490822,167.15,167.1,20.9455]
[1730433337421,10.14490822,167.14,167.1,20.9455]
[1730433338303,10.14490822,167.12,167.09,15.8254]
[1730433338609,10.14490822,167.12,167.09,21.8101]
[1730433339905,10.14490822,167.11,167.09,21.8101]
[1730433340108,10.14490822,167.12,167.09,21.8101]
[1730433343299,10.14490822,167.12,167.06,10.14490822]
[1730433343517,10.14490822,167.11,167.07,20.9492]
[1730433343819,10.14490822,167.1,167.07,20.9492]
[1730433344119,10.14490822,167.11,167.07,20.9492]
[1730433344628,10.14490822,167.11,167.07,14.9637]
[1730433349326,10.14490822,167.09,167.05,21.6115]
[1730433349625,10.14490822,167.08,167.05,21.6115]
[1730433351237,10.14490822,167.09,167.05,21.6115]
[1730433352210,30.14490822,167.1,167.05,21.6115]
[1730433353108,20.0,167.1,167.05,31.75640822]
[1730433353308,20.0,167.1,167.05,46.72190822]
[1730433353529,30.14490822,167.1,167.05,36.577]
[1730433354106,10.14490822,167.09,167.05,36.577]
[1730433355523,10.14490822,167.1,167.05,36.577]
[1730433355730,30.14490822,167.11,167.05,46.72190822]
[1730433356312,30.14490822,167.11,167.06,10.14490822]
[1730433356627,10.14490822,167.11,167.06,33.92179222]
[1730433357705,10.14490822,167.11,167.07,20.9492]
[1730433360539,10.14490822,167.08,167.02,10.14490822]
[1730433361430,10.14490822,167.08,167.03,25.11220822]
[1730433361626,10.14490822,167.08,167.04,23.776884]
[1730433361825,10.14490822,167.1,167.04,49.57549222]
[1730433362020,20.0,167.09,167.04,49.57549222]
[1730433362226,10.14490822,167.12,167.06,10.14490822]
[1730433362420,20.0,167.11,167.07,20.9492]
[1730433364346,10.14490822,167.12,167.07,20.9492]
[1730433364732,20.0,167.12,167.08,10.14490822]
[1730433365042,30.14490822,167.12,167.07,20.9492]
[1730433367046,10.14490822,167.11,167.07,20.9492]
[1730433367745,10.14490822,167.11,167.07,14.9637]
[1730433370631,30.14490822,167.12,167.07,14.9637]
[1730433371627,10.14490822,167.11,167.07,14.9637]
[1730433372243,30.14490822,167.12,167.07,25.10860822]
[1730433373449,20.0,167.13,167.07,31.09410822]
[1730433373652,20.0,167.13,167.07,37.19160822]
[1730433374447,30.14490822,167.13,167.07,37.19160822]
[1730433374649,10.14490822,167.12,167.07,27.0467]
[1730433376552,10.14490822,167.11,167.07,27.0467]
[1730433376862,10.14490822,167.1,167.07,20.9492]
[1730433377434,10.14490822,167.09,167.07,14.9637]
[1730433378947,10.14490822,167.1,167.07,14.9637]
[1730433379532,10.14490822,167.11,167.07,14.9637]
[1730433380453,10.14490822,167.1,167.04,39.430584]
[1730433380649,10.14490822,167.09,167.05,5.9862]
[1730433380829,10.14490822,167.08,167.05,5.9862]
[1730433381154,10.14490822,167.07,167.05,5.9862]
[1730433381555,10.14490822,167.07,167.05,20.9517]
[1730433382064,10.14490822,167.07,167.05,14.9655]
[1730433382264,10.14490822,167.08,167.05,14.9655]
[1730433382827,10.14490822,167.08,167.05,20.9517]
[1730433383559,10.14490822,167.06,167.05,14.9655]
[1730433384036,10.14490822,167.07,167.05,14.9655]
[1730433385054,10.14490822,167.09,167.05,14.9655]
[1730433387459,10.14490822,167.09,167.0,22.56594371]
[1730433387460,10.14490822,167.08,167.02,10.14490822]
[1730433388357,10.14490822,167.07,167.02,23.776884]
[1730433388656,10.14490822,167.07,167.03,5.9869]
[1730433388967,10.14490822,167.07,167.03,20.9542]
[1730433389353,10.14490822,167.08,167.03,20.9542]
[1730433389759,10.14490822,167.07,167.03,20.9542]
[1730433392262,10.14490822,167.06,167.03,20.9542]
[1730433392460,10.14490822,167.07,167.03,20.9542]
[1730433394265,10.14490822,167.08,167.03,20.9542]
[1730433394867,10.14490822,167.08,167.03,31.09910822]
[1730433395543,20.0,167.09,167.04,10.14490822]
[1730433395839,10.14490822,167.11,167.05,33.92179222]
[1730433396049,20.0,167.11,167.06,10.14490822]
[1730433396767,30.14490822,167.11,167.05,50.31169222]
[1730433396970,30.14490822,167.11,167.06,20.9504]
[1730433397370,10.14490822,167.1,167.06,20.9504]
[1730433398277,10.14490822,167.08,167.06,20.9504]
[1730433399058,10.14490822,167.08,167.06,14.9646]
[1730433399267,10.14490822,167.07,167.06,14.9646]
[1730433399581,10.14490822,167.07,167.01,26.23900822]
[1730433399769,10.14490822,167.06,167.03,14.9673]
[1730433399954,10.14490822,167.07,167.03,14.9673]
[1730433400272,10.14490822,167.09,167.03,25.11220822]
[1730433400768,10.14490822,167.09,167.03,31.09910822]
[1730433400975,20.0,167.1,167.05,10.14490822]
[1730433401968,10.14490822,167.11,167.06,20.9504]
[1730433403950,10.14490822,167.1,167.06,14.9646]
[1730433404574,10.14490822,167.09,167.06,14.9646]
[1730433405661,10.14490822,167.08,167.06,14.9646]
[1730433405863,10.14490822,167.09,167.06,14.9646]
[1730433406572,10.14490822,167.13,167.07,10.14490822]
[1730433406777,20.0,167.12,167.07,10.14490822]
[1730433406978,30.14490822,167.12,167.07,10.14490822]
[1730433407482,10.14490822,167.13,167.07,26.78680822]
[1730433407774,10.14490822,167.13,167.08,20.9479]
[1730433408458,30.14490822,167.14,167.08,31.09280822]
[1730433408773,30.14490822,167.14,167.09,23.776884]
[1730433409753,30.14490822,167.14,167.1,5.9844]
[1730433410153,10.14490822,167.13,167.1,5.9844]
[1730433414562,10.14490822,167.14,167.1,5.9844]
[1730433414972,10.14490822,167.13,167.1,5.9844]
[1730433416080,10.14490822,167.13,167.08,20.9479]
[1730433418363,10.14490822,167.13,167.09,23.776884]
[1730433418579,10.14490822,167.15,167.1,5.9844]
[1730433418972,10.14490822,167.14,167.1,5.9844]
[1730433423757,10.14490822,167.14,167.09,33.92179222]
[1730433423758,10.14490822,167.11,167.09,5.9847]
[1730433424063,10.14490822,167.1,167.06,5.9858]
[1730433424394,10.14490822,167.09,167.06,5.9858]
[1730433424687,10.14490822,167.1,167.06,5.9858]
[1730433425067,10.14490822,167.1,167.05,5.9862]
[1730433425384,10.14490822,167.1,167.05,44.728584]
[1730433425564,10.14490822,167.09,167.05,44.728584]
[1730433426094,10.14490822,167.1,167.05,44.728584]
[1730433426780,10.14490822,167.11,167.05,54.87349222]
[1730433427279,20.0,167.12,167.06,10.14490822]
[1730433427481,10.14490822,167.11,167.06,10.14490822]
[1730433428285,10.14490822,167.11,167.05,54.87349222]
[1730433428488,10.14490822,167.1,167.05,44.728584]
[1730433428664,10.14490822,167.1,167.05,20.9517]
[1730433429078,10.14490822,167.11,167.05,31.09660822]
[1730433429259,30.14490822,167.12,167.06,10.14490822]
[1730433430085,10.14490822,167.11,167.06,10.14490822]
[1730433430386,10.14490822,167.11,167.05,31.09660822]
[1730433430693,30.14490822,167.12,167.06,10.14490822]
[1730433431467,10.14490822,167.11,167.07,5.9855]
[1730433431969,10.14490822,167.1,167.07,5.9855]
[1730433432690,10.14490822,167.11,167.05,25.11040822]
[1730433433380,10.14490822,167.1,167.05,14.9655]
[1730433434087,10.14490822,167.1,167.05,20.9517]
[1730433434589,10.14490822,167.1,167.05,14.9655]
[1730433434888,10.14490822,167.1,167.04,10.14490822]
[1730433435195,10.14490822,167.11,167.05,10.14490822]
[1730433435371,10.14490822,167.11,167.06,10.14490822]
[1730433436099,10.14490822,167.11,167.07,5.9855]
[1730433437283,10.14490822,167.11,167.06,20.9503]
[1730433438979,10.14490822,167.1,167.06,20.9503]
[1730433439872,10.14490822,167.1,167.06,14.9645]
[1730433445691,10.14490822,167.11,167.06,14.9645]
[1730433446971,10.14490822,167.11,167.06,20.9503]
[1730433448090,10.14490822,167.11,167.06,14.9645]
[1730433448676,10.14490822,167.1,167.06,14.9645]
[1730433449492,10.14490822,167.09,167.06,14.9645]
[1730433451186,10.14490822,167.1,167.06,14.9645]
[1730433458788,10.14490822,167.07,167.03,16.1911]
[1730433458990,10.14490822,167.1,167.03,10.14490822]
[1730433459287,25.9842,167.11,167.02,14.9677]
[1730433459288,5.9838,167.12,167.04,10.14490822]
[1730433460010,25.983,167.14,167.05,20.9517]
[1730433460194,10.14490822,167.1,167.05,20.9517]
[1730433460608,10.14490822,167.11,167.05,31.09660822]
[1730433461514,10.14490822,167.13,167.06,10.14490822]
[1730433463024,10.14490822,167.13,167.07,5.9855]
[1730433464407,10.14490822,167.13,167.07,20.9492]
[1730433465317,10.14490822,167.13,167.07,31.09410822]
[1730433466190,10.14490822,167.11,167.06,10.14490822]
[1730433466801,10.14490822,167.11,167.03,20.9542]
[1730433466802,10.14490822,167.11,167.05,10.14490822]
[1730433467090,25.983,167.14,167.04,23.902374]
[1730433467091,10.14490822,167.1,167.04,33.92179222]
[1730433468106,10.14490822,167.1,167.05,20.9517]
[1730433468299,10.14490822,167.12,167.06,10.14490822]
[1730433469288,10.14490822,167.13,167.07,10.14490822]
[1730433469497,10.14490822,167.13,167.08,10.14490822]
[1730433470288,10.14490822,167.11,167.07,14.9637]
[1730433470514,10.14490822,167.11,167.07,20.9492]
[1730433472311,36.12790822,167.14,167.08,10.14490822]
[1730433472512,30.14490822,167.14,167.08,10.14490822]
[1730433472905,10.14490822,167.13,167.08,10.14490822]
[1730433473503,10.14490822,167.13,167.09,5.9847]
[1730433475323,10.14490822,167.13,167.07,25.10860822]
[1730433475623,10.14490822,167.13,167.07,31.09410822]
[1730433479609,0.60846464,167.15,167.11,10.14490822]
[1730433479926,10.14490822,167.17,167.11,10.14490822]
[1730433480428,10.14490822,167.14,167.09,20.9466]
[1730433483101,10.14490822,167.13,167.09,20.9466]
[1730433484399,10.14490822,167.14,167.09,20.9466]
[1730433494732,5.9827,167.15,167.1,10.14490822]
[1730433494733,20.0,167.15,167.1,10.14490822]
[1730433495829,20.0,167.15,167.1,16.12900822]
[1730433496019,30.14490822,167.15,167.1,5.9841]
[1730433496536,30.14490822,167.15,167.09,25.10680822]
[1730433496709,36.12770822,167.15,167.09,31.09150822]
[1730433502239,30.14490822,167.15,167.09,31.09150822]
[1730433502938,10.14490822,167.15,167.09,31.09150822]
[1730433504020,16.12720822,167.16,167.1,10.14490822]
[1730433504912,16.12720822,167.16,167.1,16.12910822]
[1730433506328,20.0,167.18,167.13,10.14490822]
[1730433507430,20.0,167.18,167.13,16.12800822]
[1730433508337,30.14490822,167.18,167.13,16.12800822]
[1730433510149,10.14490822,167.16,167.12,14.9593]
[1730433511227,10.14490822,167.16,167.12,20.943]
[1730433512835,10.14490822,167.17,167.12,20.943]
[1730433518128,10.14490822,167.16,167.12,20.943]
[1730433518948,10.14490822,167.17,167.12,20.943]
[1730433519265,10.14490822,167.17,167.12,31.08790822]
[1730433519554,10.14490822,167.18,167.12,31.08790822]
[1730433522150,36.12620822,167.19,167.13,16.12790822]
[1730433522746,20.0,167.19,167.14,10.14490822]
[1730433523046,30.14490822,167.19,167.13,31.08630822]
[1730433524947,10.14490822,167.18,167.13,14.9584]
[1730433525360,10.14490822,167.18,167.13,25.10330822]
[1730433525749,10.14490822,167.18,167.13,31.08660822]
[1730433526351,10.14490822,167.17,167.13,20.9417]
[1730433527254,10.14490822,167.18,167.13,20.9417]
[1730433528834,16.12650822,167.18,167.13,20.9417]
[1730433529955,16.12650822,167.18,167.13,14.9584]
[1730433534646,5.9816,167.18,167.13,25.10330822]
[1730433538167,5.9816,167.18,167.13,31.08660822]
[1730433543370,16.12650822,167.18,167.13,14.9584]
[1730433545649,16.12650822,167.18,167.13,20.9417]
[1730433549277,5.9816,167.18,167.13,20.9417]
[1730433554478,20.0,167.19,167.13,20.9417]
[1730433554653,20.0,167.19,167.13,31.08660822]
[1730433555176,20.0,167.19,167.14,10.14490822]
[1730433555383,20.0,167.19,167.15,10.14490822]
[1730433555559,5.9809,167.2,167.15,10.14490822]
[1730433556191,10.14490822,167.18,167.13,14.9584]
[1730433556489,10.14490822,167.17,167.11,31.26120822]
[1730433558070,10.14490822,167.17,167.11,46.22140822]
[1730433563090,10.14490822,167.17,167.12,16.12850822]
[1730433563259,16.12670822,167.18,167.12,16.12850822]
[1730433563462,5.9818,167.18,167.13,10.14490822]
[1730433563889,16.12670822,167.18,167.12,16.12850822]
[1730433565591,10.14490822,167.17,167.12,16.12850822]
[1730433565780,10.14490822,167.17,167.12,5.9836]
[1730433566279,10.14490822,167.18,167.12,16.12850822]
[1730433567286,10.14490822,167.19,167.13,10.14490822]
[1730433567489,20.0,167.18,167.13,10.14490822]
[1730433568693,20.0,167.18,167.13,16.12790822]
[1730433569677,20.0,167.18,167.14,10.14490822]
[1730433570085,20.0,167.19,167.14,10.14490822]
[1730433570383,30.14490822,167.19,167.14,10.14490822]
[1730433570567,16.12600822,167.2,167.14,10.14490822]
[1730433571384,16.12600822,167.2,167.14,16.12770822]
[1730433571789,10.14490822,167.19,167.14,16.12770822]
[1730433575504,10.14490822,167.2,167.15,10.14490822]
[1730433575998,16.12500822,167.22,167.16,10.14490822]
[1730433576395,10.14490822,167.21,167.16,10.14490822]
[1730433577206,16.12550822,167.21,167.16,10.14490822]
[1730433579385,10.14490822,167.22,167.17,10.14490822]
[1730433580575,16.12530822,167.22,167.17,10.14490822]
[1730433583588,5.9804,167.22,167.18,10.14490822]
[1730433584105,16.12530822,167.22,167.17,10.14490822]
[1730433585905,10.14490822,167.21,167.17,10.14490822]
[1730433589704,10.14490822,167.21,167.16,31.76780822]